fUSD/lending_fUSD_20260414
["ID","MTS","AMOUNT","RATE_DAILY","PERIOD"]
[420491448,1776151919206,-150.0,0.00014047,2]
[420491449,1776151919220,-150.0,0.00014048,2]
[420491450,1776151919232,-180.640694,0.00014049,2]
[420491451,1776151919246,-947.56321976,0.0001405,2]
[420491452,1776151919259,-166.66,0.0001411,2]
[420491453,1776151919284,-151.0,0.00014197,2]
[420491454,1776151919294,-154.8861934,0.00014197,2]
[420491455,1776151919317,-500.0,0.00014199,2]
[420491456,1776151919339,-500.0,0.00014199,2]
[420491457,1776151919355,-500.0,0.00014199,2]
[420491458,1776151919381,-500.0,0.00014199,2]
[420491459,1776151919391,-500.0,0.00014199,2]
[420491460,1776151919408,-500.0,0.00014199,2]
[420491461,1776151919432,-621.48,0.00014199,2]
[420491462,1776151919443,-667.11,0.00014199,2]
[420491463,1776151919454,-667.11,0.00014199,2]
[420491464,1776151919468,-667.11,0.00014199,2]
[420491465,1776151919479,-586.17,0.00014199,2]
[420491466,1776151919490,-586.17,0.00014199,2]
[420491467,1776151919505,-669.65,0.00014199,2]
[420491468,1776151919526,-669.65,0.00014199,2]
[420491469,1776151919536,-500.0,0.00014199,2]
[420491470,1776151919547,-500.0,0.00014199,2]
[420491471,1776151919567,-509715.46110845,0.000142,2]
[420491472,1776151920212,-32661.12750675,0.000142,2]
[420491473,1776151920222,-1575.0,0.00014205,2]
[420491474,1776151920238,-2815.0,0.00014212,2]
[420491475,1776151920251,-2815.0,0.00014244,2]
[420491476,1776151920271,-1575.0,0.00014245,2]
[420491477,1776151920282,-166.66,0.00014247,2]
[420491478,1776151920292,-1000.0,0.00014247,2]
[420491479,1776151920314,-1002.72972528,0.00014247,2]
[420491480,1776151920330,-1000.0,0.00014247,2]
[420491481,1776151920342,-1000.0,0.00014247,2]
[420491482,1776151920353,-1022.32027585,0.00014247,2]
[420491483,1776151920364,-500.83400253,0.00014247,2]
[420491484,1776151920379,-501.18642033,0.00014247,2]
[420491485,1776151920401,-1000.0,0.00014247,2]
[420491486,1776151920412,-1000.0,0.00014247,2]
[420491487,1776151920423,-501.41969664,0.00014247,2]
[420491488,1776151920440,-1001.61169891,0.00014247,2]
[420491489,1776151920449,-1000.0,0.00014247,2]
[420491490,1776151920460,-1000.0,0.00014247,2]
[420491491,1776151920471,-1005.30984507,0.00014247,2]
[420491492,1776151920490,-1000.0,0.00014247,2]
[420491493,1776151920500,-1000.0,0.00014247,2]
[420491494,1776151920510,-500.21996369,0.00014247,2]
[420491495,1776151920525,-688.31087151,0.00014247,2]
[420491496,1776151920534,-500.7128052,0.00014262,2]
[420491497,1776151920544,-1000.0,0.00014262,2]
[420491498,1776151920555,-1001.58633668,0.00014262,2]
[420491499,1776151920570,-1001.17533008,0.00014262,2]
[420491500,1776151920585,-1001.68140639,0.00014262,2]
[420491501,1776151920594,-1000.0,0.00014262,2]
[420491502,1776151920620,-9631.3957409,0.00014266,2]
[420491503,1776151920630,-922.71668167,0.00014333,2]
[420491504,1776151920652,-1575.0,0.0001434,2]
[420491505,1776151920661,-1575.0,0.0001434,2]
[420491506,1776151920674,-1575.0,0.0001434,2]
[420491507,1776151920686,-2815.0,0.0001434,2]
[420491508,1776151920700,-166.66,0.00014384,2]
[420491509,1776151920714,-1575.0,0.00014385,2]
[420491510,1776151920724,-9971.73953,0.0001439,2]
[420491511,1776151920750,-21555.40794874,0.00014473,2]
[420491512,1776151920760,-299.17641477,0.00014513,2]
[420491513,1776151920774,-162.0,0.00014525,2]
[420491514,1776151920791,-507.0,0.00014539,2]
[420491515,1776151920800,-150.0,0.0001458,2]
[420491516,1776151920819,-150.0,0.00014581,2]
[420491517,1776151920936,-166.873007,0.00014583,2]
[420491518,1776151920949,-429.0,0.0001466,2]
[420491519,1776151920961,-1575.0,0.0001466,2]
[420491520,1776151920978,-162.0,0.0001466,2]
[420491521,1776151920994,-2815.0,0.0001466,2]
[420491522,1776151921027,-2815.0,0.0001466,2]
[420491523,1776151921036,-162.0,0.0001466,2]
[420491524,1776151921045,-1575.0,0.00014688,2]
[420491525,1776151921065,-2815.0,0.00014688,2]
[420491526,1776151921088,-165.15,0.000147,2]
[420491527,1776151921102,-388.1601,0.000147,2]
[420491528,1776151921114,-1300.0,0.000147,5]
[420491529,1776151921138,-200.0,0.000147,5]
[420491530,1776151921147,-487.0,0.00014767,2]
[420491531,1776151921157,-250.0,0.00014795,2]
[420491532,1776151921178,-185.65,0.00014795,2]
[420491533,1776151921187,-1500.0,0.00014795,2]
[420491534,1776151921197,-1500.0,0.00014795,2]
[420491535,1776151921210,-1500.0,0.00014795,2]
[420491536,1776151921230,-506.04019465,0.00014795,2]
[420491537,1776151921241,-1500.0,0.00014795,2]
[420491538,1776151921250,-1005.30331655,0.00014795,2]
[420491539,1776151921259,-1500.0,0.00014795,2]
[420491540,1776151921274,-433.20579435,0.00014795,2]
[420491541,1776151921298,-1500.0,0.00014795,2]
[420491542,1776151921307,-1300.0,0.000148,5]
[420491543,1776151921326,-200.0,0.000148,5]
[420491544,1776151921336,-1500.0,0.0001481,2]
[420491545,1776151921345,-1500.0,0.0001481,2]
[420491546,1776151921358,-198.3116382,0.0001485,2]
[420491547,1776151921368,-166.0,0.0001485,2]
[420491548,1776151921378,-6763.94666402,0.0001485,2]
[420491549,1776151921387,-2815.0,0.00014852,2]
[420491550,1776151921401,-500.0,0.00014859,2]
[420491551,1776151921411,-2409.42,0.0001486,2]
[420491552,1776151921422,-12392.33,0.0001486,2]
[420491553,1776151921433,-1561.31,0.0001486,2]
[420491554,1776151921446,-165.0,0.000149,2]
[420491555,1776151921458,-165.0,0.000149,2]
[420491556,1776151921467,-165.0,0.000149,2]
[420491557,1776151921476,-165.0,0.000149,2]
[420491558,1776151921487,-165.0,0.000149,2]
[420491559,1776151921500,-165.0,0.000149,2]
[420491560,1776151921513,-165.0,0.000149,2]
[420491561,1776151921523,-1300.0,0.000149,5]
[420491562,1776151921535,-200.0,0.000149,5]
[420491563,1776151921551,-459.06366179,0.000149,2]
[420491564,1776151921560,-625.94919754,0.00014979,2]
[420491565,1776151921580,-586.17,0.00014979,2]
[420491566,1776151921593,-669.65,0.00014979,2]
[420491567,1776151921602,-1019.0,0.0001498,2]
[420491568,1776151921623,-2815.0,0.0001498,2]
[420491569,1776151921635,-2815.0,0.0001498,2]
[420491570,1776151921646,-2816.0,0.0001498,2]
[420491571,1776151921678,-1579.0,0.00015,2]
[420491572,1776151921688,-8056.33827374,0.00015,2]
[420491573,1776151921711,-1103.71831888,0.00015,2]
[420491574,1776151921721,-4201.75169718,0.00015,2]
[420491575,1776151921730,-300.0,0.00015,2]
[420491576,1776151921744,-511.37,0.00015,2]
[420491577,1776151921757,-311.95,0.00015,2]
[420491578,1776151921767,-156.66388933,0.00015,2]
[420491579,1776151921779,-215.80168355,0.00015,2]
[420491580,1776151921791,-198.0,0.00015043,2]
[420491581,1776151921802,-800.0,0.00015068,2]
[420491582,1776151921814,-161.65,0.000151,2]
[420491583,1776151921828,-165.0,0.000151,2]
[420491584,1776151921847,-165.0,0.000151,2]
[420491585,1776151921857,-2258.0,0.00015157,2]
[420491586,1776151921880,-1137.61,0.00015189,2]
[420491587,1776151921890,-500.0,0.00015189,2]
[420491588,1776151921915,-778.42,0.00015189,2]
[420491589,1776151921931,-500.0,0.00015199,2]
[420491590,1776151921964,-667.11,0.00015199,2]
[420491591,1776151921976,-710.17997812,0.000152,2]
[420491592,1776151921988,-232.84683208,0.000152,3]
[420491593,1776151922004,-922.71668167,0.000152,2]
[420491594,1776151922020,-21555.40794874,0.000152,2]
[420491595,1776151922031,-1318.24077784,0.000152,2]
[420491596,1776151922044,-947.56321976,0.000152,2]
[420491597,1776151922054,-9631.3957409,0.000152,2]
[420491598,1776151922066,-1228.82502732,0.00015289,5]
[420491599,1776151922075,-1137.61,0.00015289,2]
[420491600,1776151922085,-500.0,0.00015289,2]
[420491601,1776151922099,-500.0,0.00015289,2]
[420491602,1776151922120,-500.0,0.00015289,2]
[420491603,1776151922129,-500.0,0.00015289,2]
[420491604,1776151922139,-270.51369899,0.00015289,2]
[420491605,1776151922157,-667.11,0.00015289,2]
[420491606,1776151922168,-667.11,0.00015289,2]
[420491607,1776151922179,-667.11,0.00015289,2]
[420491608,1776151922197,-667.11,0.00015289,2]
[420491609,1776151922207,-667.26018009,0.00015289,2]
[420491610,1776151922217,-586.17,0.00015289,2]
[420491611,1776151922232,-586.17,0.00015289,2]
[420491612,1776151922262,-586.17,0.00015289,2]
[420491613,1776151922274,-586.17,0.00015289,2]
[420491614,1776151922289,-586.27718507,0.00015289,2]
[420491615,1776151922299,-778.42,0.00015289,2]
[420491616,1776151922311,-669.65,0.00015289,2]
[420491617,1776151922320,-669.65,0.00015289,2]
[420491618,1776151922338,-669.65,0.00015289,2]
[420491619,1776151922362,-669.65,0.00015289,2]
[420491620,1776151922382,-669.71869768,0.00015289,2]
[420491621,1776151922393,-500.0,0.00015289,2]
[420491622,1776151922416,-500.0,0.00015289,2]
[420491623,1776151922434,-500.0,0.00015289,2]
[420491624,1776151922447,-500.0,0.00015289,2]
[420491625,1776151922469,-500.0,0.00015289,2]
[420491626,1776151922479,-500.0,0.00015289,2]
[420491627,1776151922488,-500.0,0.00015289,2]
[420491628,1776151922511,-500.0,0.00015289,2]
[420491629,1776151922543,-500.0,0.00015289,2]
[420491630,1776151922554,-500.0,0.00015289,2]
[420491631,1776151922606,-500.0,0.00015289,2]
[420491632,1776151922615,-500.0,0.00015289,2]
[420491633,1776151922653,-500.0,0.00015289,2]
[420491634,1776151922673,-500.0,0.00015289,2]
[420491635,1776151922705,-500.0,0.00015289,2]
[420491636,1776151922715,-500.0,0.00015289,2]
[420491637,1776151922751,-500.0,0.00015289,2]
[420491638,1776151922769,-500.0,0.00015289,2]
[420491639,1776151922788,-500.0,0.00015289,2]
[420491640,1776151922817,-500.0,0.00015289,2]
[420491641,1776151922848,-500.0,0.00015289,2]
[420491642,1776151922859,-500.0,0.00015289,2]
[420491643,1776151922883,-500.0,0.00015289,2]
[420491644,1776151922894,-500.0,0.00015289,2]
[420491645,1776151922905,-500.0,0.00015289,2]
[420491646,1776151922935,-500.0,0.00015289,2]
[420491647,1776151922945,-500.0,0.00015289,2]
[420491648,1776151922955,-500.0,0.00015289,2]
[420491649,1776151922994,-500.0,0.00015289,2]
[420491650,1776151923005,-500.0,0.00015289,2]
[420491651,1776151923017,-500.0,0.00015289,2]
[420491652,1776151923052,-500.0,0.00015289,2]
[420491653,1776151923062,-500.0,0.00015289,2]
[420491654,1776151923072,-500.0,0.00015289,2]
[420491655,1776151923098,-500.0,0.00015289,2]
[420491656,1776151923109,-500.0,0.00015289,2]
[420491657,1776151923123,-171739.66245771,0.0001529,2]
[420491658,1776151923136,-1790.89400893,0.0001529,3]
[420491659,1776151923145,-30000.0,0.0001529,2]
[420491660,1776151923155,-3263.98707478,0.0001529,3]
[420491661,1776151923167,-81363.33089843,0.0001529,3]
[420491662,1776151923187,-151.0,0.00015297,2]
[420491663,1776151923197,-1137.61,0.00015299,2]
[420491664,1776151923206,-1137.61,0.00015299,2]
[420491665,1776151923220,-1137.61,0.00015299,2]
[420491666,1776151923235,-1137.61,0.00015299,2]
[420491667,1776151923245,-1137.61,0.00015299,2]
[420491668,1776151923255,-1137.77358208,0.00015299,2]
[420491669,1776151923279,-500.0,0.00015299,2]
[420491670,1776151923288,-500.0,0.00015299,2]
[420491671,1776151923301,-500.0,0.00015299,2]
[420491672,1776151923320,-500.0,0.00015299,2]
[420491673,1776151923329,-500.0,0.00015299,2]
[420491674,1776151923342,-178.91537091,0.00015299,2]
[420491675,1776151923370,-778.42,0.00015299,2]
[420491676,1776151923388,-778.42,0.00015299,2]
[420491677,1776151923399,-778.42,0.00015299,2]
[420491678,1776151923415,-778.42,0.00015299,2]
[420491679,1776151923433,-778.42,0.00015299,2]
[420491680,1776151923443,-778.58348967,0.00015299,2]
[420491681,1776151923466,-174189.04276605,0.000153,2]
[420491682,1776151923723,-377.65200136,0.000153,2]
[420491683,1776151923829,200.0,0.00045198,120]
[420491684,1776151923897,194.72792766,0.00045198,120]
[420491685,1776151924549,200.0,0.00045198,120]
[420491686,1776151924604,201.93286099,0.00045198,120]
[420491687,1776151924756,200.0,0.00045198,120]
[420491688,1776151924802,201.93286099,0.00045198,120]
[420491689,1776151925433,-500.0,0.00013698,2]
[420491690,1776151925447,-2000.0,0.000152,2]
[420491691,1776151925456,-2184.15982556,0.000153,2]
[420491692,1776151925471,-25757.26240739,0.000153,2]
[420491693,1776151925507,-733.71024716,0.000153,2]
[420491694,1776151934254,500.0,8.456e-05,2]
[420491695,1776151934317,277.58675457,8.456e-05,2]
[420491696,1776151934450,372.81400185,8.456e-05,2]
[420491697,1776151934543,500.0,8.456e-05,2]
[420491698,1776151934624,500.0,8.456e-05,2]
[420491699,1776151934863,500.0,8.456e-05,2]
[420491700,1776151936601,321.96095535,8.456e-05,2]
[420491701,1776151938307,238.25173553,8.456e-05,2]
[420491702,1776151938777,220.6702,8.456e-05,2]
[420491703,1776151959740,271.0,8.456e-05,2]
[420491704,1776151966584,300.0,8.455e-05,2]
[420491705,1776151967933,179.14916869,8.455e-05,2]
[420491706,1776151970092,2853.8597,8.457e-05,2]
[420491707,1776151971960,221.15830543,8.456e-05,2]
[420491708,1776151982052,500.0,8.456e-05,2]
[420491709,1776151994044,2243.55917858,8.457e-05,2]
[420491710,1776151994333,10000.01,8.457e-05,2]
[420491711,1776151994382,10000.01,8.457e-05,2]
[420491712,1776151994419,10000.01,8.457e-05,2]
[420491713,1776151994445,10000.01,8.457e-05,2]
[420491714,1776151994476,10000.01,8.457e-05,2]
[420491715,1776151994506,10000.01,8.457e-05,2]
[420491716,1776151994546,10000.01,8.457e-05,2]
[420491717,1776151994581,10000.01,8.457e-05,2]
[420491718,1776151994619,10000.01,8.457e-05,2]
[420491719,1776151994659,10000.01,8.457e-05,2]
[420491720,1776151994726,10000.01,8.457e-05,2]
[420491721,1776151994772,10000.01,8.457e-05,2]
[420491722,1776151994841,10000.01,8.457e-05,2]
[420491723,1776151994881,10000.01,8.457e-05,2]
[420491724,1776151994927,69860.62792142,8.457e-05,2]
[420491725,1776151997188,300.0,8.456e-05,2]
[420491726,1776151997435,150.0,8.456e-05,2]
[420491727,1776151997503,300.0,8.456e-05,2]
[420491728,1776152021847,2500.0,8.502e-05,2]
[420491732,1776152680786,156.23977894,8.9e-05,2]
[420491843,1776152953409,2000.0,8.645e-05,2]
[420491844,1776152999829,1500.0,8.618e-05,2]
[420491849,1776153031596,-246.1673,8.976e-05,2]
[420491850,1776153031606,-250.0,8.977e-05,2]
[420491851,1776153031628,-1200.0,8.977e-05,2]
[420491852,1776153031640,-1200.0,8.977e-05,2]
[420491853,1776153031651,-300.0,8.977e-05,2]
[420491854,1776153031667,-5265.0402,8.978e-05,2]
[420491855,1776153031692,-753.17508139,8.978e-05,2]
[420491856,1776153031723,-400.0,8.978e-05,2]
[420491857,1776153031748,-2414.2214,8.978e-05,2]
[420491858,1776153031935,-587.15891861,8.978e-05,2]
[420491859,1776153031945,-228.95937666,8.978e-05,2]
[420491860,1776153031964,-1565.63480144,8.978e-05,2]
[420491861,1776153031978,-3560.00000002,8.978e-05,2]
[420491862,1776153031990,-245.03652188,8.978e-05,2]
[420491863,1776153032001,-539.76499616,9.05e-05,2]
[420491864,1776153032026,-1657.37500384,9.05e-05,2]
[420491865,1776153032039,-300.0,9.074e-05,2]
[420491866,1776153032068,-184.0618505,9.074e-05,2]
[420491867,1776153032093,-244.76,9.077e-05,2]
[420491868,1776153032124,-150.0,9.077e-05,2]
[420491869,1776153032133,-4268.531,9.078e-05,2]
[420491870,1776153032184,-299.274,9.078e-05,2]
[420491871,1776153032196,-7579.28476078,9.078e-05,2]
[420491872,1776153032243,-6368.32208559,9.078e-05,2]
[420491873,1776153032255,-315.8676625,9.078e-05,2]
[420491874,1776153032505,-258.87161287,9.078e-05,2]
[420491875,1776153032535,-84096.67447826,9.078e-05,2]
[420491876,1776153032548,-184.06185048,9.126e-05,2]
[420491877,1776153032579,-6616.04272654,9.177e-05,2]
[420491878,1776153032595,-184.06185048,9.177e-05,2]
[420491879,1776153032646,-1852.42,9.209e-05,2]
[420491880,1776153032661,-22266.01,9.323e-05,2]
[420491881,1776153032681,-10717.75,9.323e-05,2]
[420491882,1776153032696,-299.99,9.323e-05,2]
[420491883,1776153032719,-150.99,9.323e-05,2]
[420491884,1776153032732,-9999.99,9.323e-05,2]
[420491885,1776153032753,-205.988869,9.346e-05,2]
[420491886,1776153032767,-7037.00989903,9.696e-05,2]
[420491887,1776153032777,-2500.0,9.724e-05,2]
[420491888,1776153032793,-2000.0,9.726e-05,2]
[420491889,1776153032827,-160.02455239,9.803e-05,2]
[420491890,1776153032846,-160.03259129,9.803e-05,2]
[420491891,1776153032866,-160.0128224,9.803e-05,2]
[420491892,1776153032876,-500.0,9.803e-05,2]
[420491893,1776153032886,-500.0,9.803e-05,2]
[420491894,1776153032905,-501.08118823,9.803e-05,2]
[420491895,1776153032916,-610.3510203,9.803e-05,2]
[420491897,1776153032926,-349.34400429,9.803e-05,2]
[420491899,1776153032937,-500.0,9.803e-05,2]
[420491901,1776153032952,-500.0,9.803e-05,2]
[420491903,1776153032962,-500.25057568,9.803e-05,2]
[420491904,1776153032971,-165.19144455,9.803e-05,2]
[420491905,1776153032984,-500.0,9.823e-05,2]
[420491906,1776153033003,-500.0,9.823e-05,2]
[420491907,1776153033013,-244.3107282,9.823e-05,2]
[420491908,1776153033022,-69838.41139883,9.824e-05,2]
[420491909,1776153033047,-716317.28750117,9.824e-05,2]
[420491910,1776153033057,-5000.0,9.873e-05,2]
[420491911,1776153033068,-250.0,9.873e-05,2]
[420491912,1776153033092,-250.0,9.873e-05,2]
[420491913,1776153033102,-203.0,9.875e-05,2]
[420491914,1776153033113,-420.0,9.875e-05,2]
[420491915,1776153033131,-1680.0,9.875e-05,2]
[420491916,1776153033143,-166.03,9.876e-05,2]
[420491917,1776153033153,-420.0,9.981e-05,2]
[420491918,1776153033166,-193.0,9.983e-05,2]
[420491919,1776153033178,-255.0,9.985e-05,2]
[420491920,1776153033190,-1386.78395259,0.0001,2]
[420491921,1776153033201,-150.0,0.000102,2]
[420491922,1776153033214,-3527.0,0.00010279,2]
[420491923,1776153033225,-1348.0,0.00010279,2]
[420491924,1776153033237,-622.0,0.00010279,2]
[420491925,1776153033250,-1050.724,0.00010279,2]
[420491926,1776153033273,-150.0,0.00010279,2]
[420491927,1776153033283,-1218.0,0.00010279,2]
[420491928,1776153033292,-926.0,0.00010279,2]
[420491929,1776153033312,-3777.0,0.00010279,2]
[420491930,1776153033324,-416.0,0.00010279,2]
[420491931,1776153033333,-508.06532933,0.00010351,2]
[420491932,1776153033352,-1000.0,0.00010351,2]
[420491933,1776153033362,-500.0,0.00010351,2]
[420491934,1776153033374,-166.03,0.00010419,2]
[420491935,1776153033391,-1438.09495884,0.00010548,2]
[420491936,1776153033404,-2000.0,0.00010806,2]
[420491937,1776153033421,-2351.0,0.00010862,2]
[420491938,1776153033433,-1312.24786116,0.00010898,2]
[420491939,1776153033443,-150.0,0.00010959,2]
[420491940,1776153033456,-166.03,0.00010962,2]
[420491941,1776153033476,-355.0,0.0001098,2]
[420491942,1776153033488,-433.0,0.00010983,2]
[420491943,1776153033515,-510.23289652,0.00011096,2]
[420491944,1776153033525,-190.2007,0.000115,2]
[420491945,1776153033555,-10000.0,0.00011504,2]
[420491946,1776153033564,-166.03,0.00011506,2]
[420491947,1776153033582,-288.0,0.00011544,5]
[420491948,1776153033598,-160.0,0.00011559,2]
[420491949,1776153033607,-250.0,0.0001186,2]
[420491950,1776153033621,-2000.0,0.00011887,2]
[420491951,1776153033645,-3292.0,0.00011948,2]
[420491952,1776153033656,-736.0,0.00012082,2]
[420491953,1776153033680,-500.0,0.00012137,2]
[420491954,1776153033699,-2197.14,0.0001267,2]
[420491955,1776153033710,-10000.0,0.000127,2]
[420491956,1776153033720,-163.77,0.0001278,2]
[420491957,1776153033734,-153.09,0.0001278,2]
[420491958,1776153033745,-241.1754,0.000128,2]
[420491959,1776153033756,-2000.0,0.00012968,2]
[420491960,1776153033766,-250.0,0.00013,2]
[420491961,1776153033783,-4609.0,0.00013143,2]
[420491962,1776153033797,-163.77,0.00013193,2]
[420491963,1776153033812,-8453.65703839,0.00013208,2]
[420491964,1776153033891,-13041.3334533,0.00013208,2]
[420491965,1776153033909,-1697.54195352,0.00013279,2]
[420491966,1776153033923,-3527.0,0.00013279,2]
[420491967,1776153033949,-1348.0,0.00013279,2]
[420491968,1776153033963,-622.0,0.00013279,2]
[420491969,1776153034006,-1047.0,0.00013279,2]
[420491970,1776153034030,-926.0,0.00013279,2]
[420491971,1776153034049,-1218.0,0.00013279,2]
[420491972,1776153034064,-3777.0,0.00013279,2]
[420491973,1776153034076,-416.0,0.00013279,2]
[420491974,1776153034109,-1016.0,0.00013289,2]
[420491975,1776153034123,-500.0,0.00013425,2]
[420491976,1776153034172,-500.0,0.00013425,2]
[420491977,1776153034201,-500.0,0.00013425,2]
[420491978,1776153034214,-500.0,0.00013425,2]
[420491979,1776153034240,-500.0,0.00013425,2]
[420491980,1776153034252,-500.0,0.00013425,2]
[420491981,1776153034271,-500.0,0.00013425,2]
[420491982,1776153034283,-500.0,0.00013425,2]
[420491983,1776153034297,-500.0,0.00013425,2]
[420491984,1776153034320,-500.0,0.00013425,2]
[420491985,1776153034331,-500.0,0.00013425,2]
[420491986,1776153034357,-500.0,0.00013425,2]
[420491987,1776153034369,-500.0,0.00013425,2]
[420491988,1776153034379,-500.0,0.00013425,2]
[420491989,1776153034405,-500.0,0.00013425,2]
[420491990,1776153034418,-500.0,0.00013425,2]
[420491991,1776153034448,-500.0,0.00013425,2]
[420491992,1776153034470,-500.0,0.00013425,2]
[420491993,1776153034485,-356.0,0.00013425,2]
[420491994,1776153034511,-507.0,0.000135,2]
[420491995,1776153034527,-7836.5597387,0.00013599,2]
[420491996,1776153034572,-20627.8869613,0.00013599,2]
[420491997,1776153034588,-1000.0,0.00013599,2]
[420491998,1776153034615,-163.77,0.00013606,2]
[420491999,1776153034630,-500.0,0.00013698,2]
[420492000,1776153034647,-500.0,0.00013698,2]
[420492001,1776153034663,-500.0,0.00013698,2]
[420492002,1776153034685,-500.0,0.00013698,2]
[420492003,1776153034702,-500.0,0.00013698,2]
[420492004,1776153034723,-500.0,0.00013698,2]
[420492005,1776153034735,-500.0,0.00013698,2]
[420492006,1776153034753,-500.0,0.00013698,2]
[420492007,1776153034766,-500.0,0.00013698,2]
[420492008,1776153034779,-500.0,0.00013698,2]
[420492009,1776153034815,-500.0,0.00013698,2]
[420492010,1776153034834,-500.0,0.00013698,2]
[420492011,1776153034855,-500.0,0.00013698,2]
[420492012,1776153034878,-500.0,0.00013698,2]
[420492013,1776153034905,-500.0,0.00013698,2]
[420492014,1776153034923,-500.0,0.00013698,2]
[420492015,1776153034937,-500.0,0.00013698,2]
[420492016,1776153034948,-500.0,0.00013698,2]
[420492017,1776153034968,-500.0,0.00013698,2]
[420492018,1776153034992,-500.0,0.00013698,2]
[420492019,1776153035016,-500.0,0.00013698,2]
[420492020,1776153035029,-355.38698992,0.00013698,2]
[420492021,1776153035042,-500.0,0.00013698,2]
[420492022,1776153035058,-500.6388815,0.00013698,2]
[420492023,1776153035071,-500.0,0.00013698,2]
[420492024,1776153035088,-500.0,0.00013698,2]
[420492025,1776153035107,-182.44854255,0.00013698,2]
[420492026,1776153035120,-500.0,0.00013698,2]
[420492027,1776153035134,-349.59969284,0.00013698,2]
[420492028,1776153035150,-500.0,0.00013698,2]
[420492029,1776153035164,-150.0,0.00013698,2]
[420492030,1776153035183,-500.0,0.00013698,2]
[420492031,1776153035201,-500.0,0.00013698,2]
[420492032,1776153035214,-500.0,0.00013698,2]
[420492033,1776153035234,-500.0,0.00013698,2]
[420492034,1776153035273,-500.0,0.00013698,2]
[420492035,1776153035284,-500.0,0.00013698,2]
[420492036,1776153035299,-500.0,0.00013698,2]
[420492037,1776153035316,-500.0,0.00013698,2]
[420492038,1776153035330,-645.78896367,0.00013698,2]
[420492039,1776153035346,-200.0,0.00013699,2]
[420492040,1776153035362,-155.85,0.00013699,2]
[420492041,1776153035373,-403.10431395,0.00013699,2]
[420492042,1776153035387,-675.0093946,0.00013699,2]
[420492043,1776153035400,-675.0093946,0.00013699,2]
[420492044,1776153035411,-675.0093946,0.00013699,2]
[420492045,1776153035424,-675.0093946,0.00013699,2]
[420492046,1776153035438,-675.0093946,0.00013699,2]
[420492047,1776153035453,-675.0093946,0.00013699,2]
[420492048,1776153035467,-675.0093946,0.00013699,2]
[420492049,1776153035480,-675.0093946,0.00013699,2]
[420492050,1776153035497,-675.0093946,0.00013699,2]
[420492051,1776153035511,-675.0093946,0.00013699,2]
[420492052,1776153035533,-675.0093946,0.00013699,2]
[420492053,1776153035547,-675.0093946,0.00013699,2]
[420492054,1776153035565,-675.0093946,0.00013699,2]
[420492055,1776153035582,-675.0093946,0.00013699,2]
[420492056,1776153035599,-675.0093946,0.00013699,2]
[420492057,1776153035616,-675.0093946,0.00013699,2]
[420492058,1776153035631,-675.0093946,0.00013699,2]
[420492059,1776153035659,-675.0093946,0.00013699,2]
[420492060,1776153035675,-675.0093946,0.00013699,2]
[420492061,1776153035687,-675.0093946,0.00013699,2]
[420492062,1776153035704,-675.0093946,0.00013699,2]
[420492063,1776153035716,-675.0093946,0.00013699,2]
[420492064,1776153035732,-675.0093946,0.00013699,2]
[420492065,1776153035747,-675.0093946,0.00013699,2]
[420492066,1776153035759,-675.0093946,0.00013699,2]
[420492067,1776153035776,-675.0093946,0.00013699,2]
[420492068,1776153035789,-675.0093946,0.00013699,2]